[Event "Early-Titled-Tuesday-Blitz-May-28-2024"]
[Site "Chess.com"]
[Date "2024.05.28"]
[Round "4"]
[White "ZachHKL"]
[Black "Casper"]
[Result "0-1"]
[WhiteElo "2338"]
[BlackElo "2515"]
[TimeControl "180+1"]
[EndTime "8:37:31 PDT"]
[Termination "Casper won by checkmate"]

1. e4 {[%clk 0:03:00.9]} 1... Nc6 {[%clk 0:02:59.2]} 2. d4 {[%clk 0:02:57.9]}
2... d5 {[%clk 0:02:59.5]} 3. exd5 {[%clk 0:02:54.6]} 3... Qxd5 {[%clk
0:03:00.4]} 4. Nf3 {[%clk 0:02:54.8]} 4... Bg4 {[%clk 0:03:00.7]} 5. Be3 {[%clk
0:02:51.4]} 5... Bxf3 {[%clk 0:02:58.1]} 6. Qxf3 {[%clk 0:02:48.7]} 6... Qxf3
{[%clk 0:02:58.6]} 7. gxf3 {[%clk 0:02:49.6]} 7... O-O-O {[%clk 0:02:58.4]} 8.
c3 {[%clk 0:02:49.7]} 8... e5 {[%clk 0:02:58.3]} 9. dxe5 {[%clk 0:02:47.8]} 9...
Nxe5 {[%clk 0:02:59.2]} 10. Be2 {[%clk 0:02:46.1]} 10... Ne7 {[%clk 0:02:56.7]}
11. Nd2 {[%clk 0:02:45.5]} 11... Nd5 {[%clk 0:02:52]} 12. Rg1 {[%clk 0:02:43.9]}
12... g6 {[%clk 0:02:45.8]} 13. Bd4 {[%clk 0:02:43.3]} 13... Bg7 {[%clk
0:02:32.7]} 14. f4 {[%clk 0:02:41.8]} 14... Nxf4 {[%clk 0:02:31.2]} 15. Bxe5
{[%clk 0:02:30.9]} 15... Bxe5 {[%clk 0:02:29.7]} 16. Nc4 {[%clk 0:02:22.4]}
16... Rhe8 {[%clk 0:02:26.3]} 17. Ne3 {[%clk 0:02:14.7]} 17... f5 {[%clk
0:02:17.8]} 18. Rd1 {[%clk 0:02:02.9]} 18... Nxe2 {[%clk 0:02:02.1]} 19. Rxd8+
{[%clk 0:01:58.6]} 19... Kxd8 {[%clk 0:01:59]} 20. Kxe2 {[%clk 0:01:57.5]} 20...
Bxh2 {[%clk 0:01:55]} 21. Rh1 {[%clk 0:01:56]} 21... Bd6 {[%clk 0:01:51.4]} 22.
Kf3 {[%clk 0:01:53.5]} 22... h5 {[%clk 0:01:49.4]} 23. Rg1 {[%clk 0:01:52.9]}
23... Re6 {[%clk 0:01:42.4]} 24. Nc2 {[%clk 0:01:52.1]} 24... c5 {[%clk
0:01:40.9]} 25. Ne3 {[%clk 0:01:51.2]} 25... Ke7 {[%clk 0:01:33.2]} 26. Nd5+
{[%clk 0:01:50.8]} 26... Kf7 {[%clk 0:01:33]} 27. Ne3 {[%clk 0:01:51.2]} 27...
f4 {[%clk 0:01:24.1]} 28. Nd5 {[%clk 0:01:49.6]} 28... Re5 {[%clk 0:01:23.7]}
29. c4 {[%clk 0:01:47.3]} 29... g5 {[%clk 0:01:21.8]} 30. Rd1 {[%clk 0:01:43.1]}
30... g4+ {[%clk 0:01:21]} 31. Kg2 {[%clk 0:01:43.7]} 31... f3+ {[%clk
0:01:17.9]} 32. Kf1 {[%clk 0:01:41]} 32... Re2 {[%clk 0:01:18.5]} 33. Nc3 {[%clk
0:01:39]} 33... Re6 {[%clk 0:01:10.2]} 34. Rd5 {[%clk 0:01:35.7]} 34... Kg6
{[%clk 0:01:08.3]} 35. Nb5 {[%clk 0:01:34.7]} 35... Bf4 {[%clk 0:01:00.8]} 36.
Nxa7 {[%clk 0:01:32.4]} 36... h4 {[%clk 0:00:57.6]} 37. Kg1 {[%clk 0:01:22.8]}
37... Re1# {[%clk 0:00:56.2]} 0-1

[Event "Early-Titled-Tuesday-Blitz-May-28-2024"]
[Site "Chess.com"]
[Date "2024.05.28"]
[Round "4"]
[White "chrisclaireredfield"]
[Black "ilqar_74"]
[Result "1/2-1/2"]
[WhiteElo "2560"]
[BlackElo "2774"]
[TimeControl "180+1"]
[EndTime "8:37:39 PDT"]
[Termination "Game drawn by repetition"]

1. Nf3 {[%clk 0:03:00.9]} 1... Nf6 {[%clk 0:02:58.6]} 2. g3 {[%clk 0:03:00.8]}
2... e6 {[%clk 0:02:58.7]} 3. Bg2 {[%clk 0:03:00.9]} 3... d5 {[%clk 0:02:47.9]}
4. O-O {[%clk 0:02:59]} 4... Be7 {[%clk 0:02:48.5]} 5. d4 {[%clk 0:02:58.9]}
5... O-O {[%clk 0:02:48.9]} 6. c4 {[%clk 0:02:58.6]} 6... dxc4 {[%clk
0:02:49.5]} 7. Qa4 {[%clk 0:02:58.4]} 7... a6 {[%clk 0:02:49.4]} 8. Qxc4 {[%clk
0:02:58.3]} 8... b5 {[%clk 0:02:50]} 9. Qc2 {[%clk 0:02:58.6]} 9... Bb7 {[%clk
0:02:50.6]} 10. Bg5 {[%clk 0:02:58.6]} 10... Nc6 {[%clk 0:02:49.1]} 11. Rd1
{[%clk 0:02:57]} 11... h6 {[%clk 0:02:43.2]} 12. Bxf6 {[%clk 0:02:53.2]} 12...
Bxf6 {[%clk 0:02:43.1]} 13. e3 {[%clk 0:02:52.5]} 13... Nb4 {[%clk 0:02:41.6]}
14. Qb3 {[%clk 0:02:47.2]} 14... Nd5 {[%clk 0:02:34.2]} 15. Nc3 {[%clk
0:02:47.1]} 15... Nxc3 {[%clk 0:02:34.1]} 16. bxc3 {[%clk 0:02:47]} 16... c5
{[%clk 0:02:32.3]} 17. a4 {[%clk 0:02:41.3]} 17... Qb6 {[%clk 0:02:27]} 18. axb5
{[%clk 0:02:28.1]} 18... axb5 {[%clk 0:02:27]} 19. dxc5 {[%clk 0:02:26.8]} 19...
Qxc5 {[%clk 0:02:24.5]} 20. Nd4 {[%clk 0:02:26.6]} 20... Bxg2 {[%clk 0:02:13]}
21. Kxg2 {[%clk 0:02:26.7]} 21... Bxd4 {[%clk 0:02:10]} 22. cxd4 {[%clk
0:02:24.8]} 22... Qc6+ {[%clk 0:02:10]} 23. Kg1 {[%clk 0:02:23.5]} 23... Rxa1
{[%clk 0:02:04.8]} 24. Rxa1 {[%clk 0:02:23]} 24... h5 {[%clk 0:02:04.4]} 25. h4
{[%clk 0:02:20.9]} 25... Rb8 {[%clk 0:02:00.2]} 26. Qb4 {[%clk 0:02:20.2]} 26...
g6 {[%clk 0:01:45.5]} 27. Rb1 {[%clk 0:02:19.9]} 27... Kg7 {[%clk 0:01:41.6]}
28. Qc5 {[%clk 0:02:19.3]} 28... Qb7 {[%clk 0:01:27.4]} 29. Rb4 {[%clk
0:02:17.4]} 29... Rc8 {[%clk 0:01:22.4]} 30. Rxb5 {[%clk 0:02:08.9]} 30... Qa8
{[%clk 0:01:14.2]} 31. Ra5 {[%clk 0:02:02.6]} 31... Qb7 {[%clk 0:00:59.1]} 32.
Rb5 {[%clk 0:01:59.1]} 32... Qa6 {[%clk 0:00:28.7]} 33. Ra5 {[%clk 0:01:46.1]}
33... Qb7 {[%clk 0:00:23.4]} 34. Rb5 {[%clk 0:01:43.6]} 1/2-1/2

[Event "Early-Titled-Tuesday-Blitz-May-28-2024"]
[Site "Chess.com"]
[Date "2024.05.28"]
[Round "4"]
[White "Vesper2018"]
[Black "Peng_Li-Min"]
[Result "1-0"]
[WhiteElo "2575"]
[BlackElo "2774"]
[TimeControl "180+1"]
[EndTime "8:37:44 PDT"]
[Termination "Vesper2018 won by resignation"]

1. e4 {[%clk 0:03:00.9]} 1... Nc6 {[%clk 0:02:59.9]} 2. Nf3 {[%clk 0:02:58.5]}
2... d5 {[%clk 0:03:00.5]} 3. exd5 {[%clk 0:02:54.3]} 3... Qxd5 {[%clk
0:03:01.4]} 4. Nc3 {[%clk 0:02:54.6]} 4... Qh5 {[%clk 0:03:02]} 5. d4 {[%clk
0:02:53.1]} 5... Bg4 {[%clk 0:03:01.6]} 6. Be2 {[%clk 0:02:53.1]} 6... O-O-O
{[%clk 0:03:01.9]} 7. Be3 {[%clk 0:02:49.7]} 7... e5 {[%clk 0:02:57.8]} 8. d5
{[%clk 0:02:48.6]} 8... Nf6 {[%clk 0:02:58]} 9. h3 {[%clk 0:02:23.6]} 9... Bb4
{[%clk 0:01:55.7]} 10. O-O {[%clk 0:02:19.1]} 10... Bxh3 {[%clk 0:01:56]} 11.
gxh3 {[%clk 0:02:17.6]} 11... Qxh3 {[%clk 0:01:56.9]} 12. Ng5 {[%clk 0:01:59.6]}
12... Qh4 {[%clk 0:01:56.7]} 13. Nxf7 {[%clk 0:01:54]} 13... e4 {[%clk 0:01:42]}
14. Kg2 {[%clk 0:01:23.5]} 14... Ne8 {[%clk 0:00:02.9]} 15. Bg5 {[%clk
0:01:18.7]} 1-0

[Event "Early-Titled-Tuesday-Blitz-May-28-2024"]
[Site "Chess.com"]
[Date "2024.05.28"]
[Round "4"]
[White "BobbyFischer1508"]
[Black "Keithonsky"]
[Result "0-1"]
[WhiteElo "2451"]
[BlackElo "2637"]
[TimeControl "180+1"]
[EndTime "8:37:48 PDT"]
[Termination "Keithonsky won by resignation"]

1. b3 {[%clk 0:03:00.9]} 1... c5 {[%clk 0:02:59.6]} 2. Bb2 {[%clk 0:03:00.3]}
2... Nc6 {[%clk 0:03:00.1]} 3. c4 {[%clk 0:02:58.7]} 3... e6 {[%clk 0:02:57.2]}
4. e3 {[%clk 0:02:58.5]} 4... Nf6 {[%clk 0:02:57]} 5. Nf3 {[%clk 0:02:57.2]}
5... d5 {[%clk 0:02:57.4]} 6. cxd5 {[%clk 0:02:56.1]} 6... exd5 {[%clk
0:02:54.2]} 7. d3 {[%clk 0:02:56]} 7... Bd6 {[%clk 0:02:51.9]} 8. Nbd2 {[%clk
0:02:53.4]} 8... O-O {[%clk 0:02:52.3]} 9. Be2 {[%clk 0:02:52.1]} 9... Re8
{[%clk 0:02:52.6]} 10. O-O {[%clk 0:02:51.9]} 10... d4 {[%clk 0:02:51.7]} 11. e4
{[%clk 0:02:50.8]} 11... b6 {[%clk 0:02:49.9]} 12. a3 {[%clk 0:02:43.8]} 12...
a5 {[%clk 0:02:49.8]} 13. Ne1 {[%clk 0:02:34]} 13... Bf4 {[%clk 0:02:44.6]} 14.
g3 {[%clk 0:02:31.5]} 14... Bc7 {[%clk 0:02:44.5]} 15. f4 {[%clk 0:02:30.2]}
15... Bh3 {[%clk 0:02:45.1]} 16. Ng2 {[%clk 0:02:28.8]} 16... Qd7 {[%clk
0:02:41.4]} 17. Re1 {[%clk 0:02:04.3]} 17... Ng4 {[%clk 0:02:40.5]} 18. Nf1
{[%clk 0:01:55.4]} 18... f5 {[%clk 0:02:32.2]} 19. e5 {[%clk 0:01:50.3]} 19...
Ne7 {[%clk 0:02:29]} 20. Bf3 {[%clk 0:01:48.8]} 20... Rad8 {[%clk 0:02:26.7]}
21. Bc1 {[%clk 0:01:48.4]} 21... Nd5 {[%clk 0:02:26.1]} 22. Bd2 {[%clk
0:01:48.1]} 22... g6 {[%clk 0:02:22.2]} 23. Qc2 {[%clk 0:01:45.3]} 23... Kh8
{[%clk 0:02:19.4]} 24. Rad1 {[%clk 0:01:43.5]} 24... Qe6 {[%clk 0:02:16.2]} 25.
Qc4 {[%clk 0:01:31]} 25... Rd7 {[%clk 0:02:08.6]} 26. Qb5 {[%clk 0:01:25]} 26...
Bd8 {[%clk 0:01:54.5]} 27. b4 {[%clk 0:01:08.4]} 27... axb4 {[%clk 0:01:48.5]}
28. axb4 {[%clk 0:01:07.6]} 28... Be7 {[%clk 0:01:41.1]} 29. bxc5 {[%clk
0:01:05.8]} 29... Bxc5 {[%clk 0:01:40.8]} 30. Ra1 {[%clk 0:00:48.3]} 30... Red8
{[%clk 0:01:40.1]} 31. Ra6 {[%clk 0:00:47.4]} 31... Nc7 {[%clk 0:01:40.1]} 32.
Qxb6 {[%clk 0:00:20.1]} 32... Bxb6 {[%clk 0:01:39.3]} 0-1

[Event "Early-Titled-Tuesday-Blitz-May-28-2024"]
[Site "Chess.com"]
[Date "2024.05.28"]
[Round "4"]
[White "korbul"]
[Black "mbojan"]
[Result "0-1"]
[WhiteElo "2663"]
[BlackElo "2904"]
[TimeControl "180+1"]
[EndTime "8:37:51 PDT"]
[Termination "mbojan won by resignation"]

1. d4 {[%clk 0:03:00.9]} 1... a6 {[%clk 0:02:59.9]} 2. e4 {[%clk 0:03:00.3]}
2... e6 {[%clk 0:03:00.2]} 3. Bd3 {[%clk 0:02:59.7]} 3... d5 {[%clk 0:03:00.6]}
4. e5 {[%clk 0:02:58.4]} 4... c5 {[%clk 0:03:00.9]} 5. c3 {[%clk 0:02:57.6]}
5... Bd7 {[%clk 0:03:01]} 6. Nf3 {[%clk 0:02:57.1]} 6... cxd4 {[%clk 0:03:00.3]}
7. cxd4 {[%clk 0:02:56.5]} 7... Bb5 {[%clk 0:03:00.6]} 8. O-O {[%clk 0:02:52.5]}
8... Nc6 {[%clk 0:03:00.4]} 9. Nc3 {[%clk 0:02:52]} 9... Bxd3 {[%clk 0:03:00.3]}
10. Qxd3 {[%clk 0:02:52.6]} 10... Nge7 {[%clk 0:03:00.7]} 11. Bg5 {[%clk
0:02:52]} 11... h6 {[%clk 0:03:00.4]} 12. Bxe7 {[%clk 0:02:51.7]} 12... Bxe7
{[%clk 0:03:00.4]} 13. Rfc1 {[%clk 0:02:51.3]} 13... O-O {[%clk 0:03:00.1]} 14.
a3 {[%clk 0:02:51.1]} 14... Na5 {[%clk 0:02:58.1]} 15. b4 {[%clk 0:02:48.7]}
15... Nc4 {[%clk 0:02:58.1]} 16. Na4 {[%clk 0:02:46.3]} 16... Rc8 {[%clk
0:02:53.7]} 17. Nd2 {[%clk 0:02:44.2]} 17... b5 {[%clk 0:02:51.2]} 18. Nc5
{[%clk 0:02:43.8]} 18... Bg5 {[%clk 0:02:39]} 19. Nxc4 {[%clk 0:02:22.2]} 19...
dxc4 {[%clk 0:02:32.7]} 20. Qe4 {[%clk 0:02:21.5]} 20... Bxc1 {[%clk 0:02:32.6]}
21. Rxc1 {[%clk 0:02:22.1]} 21... Qd5 {[%clk 0:02:30]} 22. Qxd5 {[%clk
0:02:20.9]} 22... exd5 {[%clk 0:02:30.9]} 23. f4 {[%clk 0:02:19.5]} 23... Ra8
{[%clk 0:02:27.2]} 24. f5 {[%clk 0:01:53.4]} 24... a5 {[%clk 0:02:26.7]} 25. Kf2
{[%clk 0:01:32.3]} 25... axb4 {[%clk 0:02:26.9]} 26. axb4 {[%clk 0:01:32.3]}
26... Ra2+ {[%clk 0:02:27.7]} 27. Kf3 {[%clk 0:01:32.2]} 27... Rfa8 {[%clk
0:02:28.5]} 28. e6 {[%clk 0:01:21.9]} 28... fxe6 {[%clk 0:02:22.7]} 29. fxe6
{[%clk 0:01:19.8]} 29... Kf8 {[%clk 0:02:19.8]} 30. Kf4 {[%clk 0:01:09.2]} 30...
Re2 {[%clk 0:02:10.9]} 31. Kf5 {[%clk 0:01:01.7]} 31... Ke7 {[%clk 0:02:08.6]}
32. g4 {[%clk 0:01:00.8]} 32... g5 {[%clk 0:01:40.1]} 33. h4 {[%clk 0:00:57.3]}
33... Rf8+ {[%clk 0:01:32.5]} 34. Kg6 {[%clk 0:00:56.2]} 34... Rf6+ {[%clk
0:01:33.4]} 35. Kg7 {[%clk 0:00:53.7]} 35... gxh4 {[%clk 0:01:33.3]} 36. Rh1
{[%clk 0:00:52.8]} 36... Rexe6 {[%clk 0:01:16.6]} 37. Nxe6 {[%clk 0:00:51.2]}
37... Rxe6 {[%clk 0:01:17.5]} 38. Rxh4 {[%clk 0:00:51.1]} 38... c3 {[%clk
0:01:17.9]} 0-1

[Event "Early-Titled-Tuesday-Blitz-May-28-2024"]
[Site "Chess.com"]
[Date "2024.05.28"]
[Round "4"]
[White "FMalexhdez"]
[Black "Mesa_1"]
[Result "0-1"]
[WhiteElo "2262"]
[BlackElo "2581"]
[TimeControl "180+1"]
[EndTime "8:37:51 PDT"]
[Termination "Mesa_1 won by resignation"]

1. e4 {[%clk 0:02:47.1]} 1... g6 {[%clk 0:02:56.4]} 2. d4 {[%clk 0:02:46]} 2...
Bg7 {[%clk 0:02:56.8]} 3. Nf3 {[%clk 0:02:46.3]} 3... d6 {[%clk 0:02:56.1]} 4.
Nc3 {[%clk 0:02:45.9]} 4... Nf6 {[%clk 0:02:56.6]} 5. Be2 {[%clk 0:02:45.7]}
5... O-O {[%clk 0:02:56.9]} 6. O-O {[%clk 0:02:45.3]} 6... a6 {[%clk 0:02:56.7]}
7. a4 {[%clk 0:02:45.5]} 7... Nc6 {[%clk 0:02:56.9]} 8. Re1 {[%clk 0:02:43.6]}
8... e5 {[%clk 0:02:55.3]} 9. Bf1 {[%clk 0:02:31.2]} 9... Bg4 {[%clk 0:02:53.9]}
10. d5 {[%clk 0:02:22.6]} 10... Nd4 {[%clk 0:02:50.1]} 11. Be2 {[%clk
0:02:17.7]} 11... Nxe2+ {[%clk 0:02:46.4]} 12. Qxe2 {[%clk 0:02:17.3]} 12... Nh5
{[%clk 0:02:47.2]} 13. h3 {[%clk 0:02:16.6]} 13... Bd7 {[%clk 0:02:44.5]} 14.
Nh2 {[%clk 0:01:56.8]} 14... Nf4 {[%clk 0:02:41.1]} 15. Bxf4 {[%clk 0:01:55.9]}
15... exf4 {[%clk 0:02:42]} 16. Qf3 {[%clk 0:01:54.8]} 16... b5 {[%clk
0:02:36.6]} 17. axb5 {[%clk 0:01:49.4]} 17... axb5 {[%clk 0:02:37.5]} 18. Qxf4
{[%clk 0:01:48.7]} 18... b4 {[%clk 0:02:33.9]} 19. Rxa8 {[%clk 0:01:47.4]} 19...
Qxa8 {[%clk 0:02:34.8]} 20. Nd1 {[%clk 0:01:46.9]} 20... Qa4 {[%clk 0:02:29.4]}
21. Qd2 {[%clk 0:01:44.9]} 21... b3 {[%clk 0:02:23.1]} 22. c3 {[%clk 0:01:41.4]}
22... Re8 {[%clk 0:02:20.5]} 23. f3 {[%clk 0:01:39.4]} 23... h5 {[%clk
0:02:18.2]} 24. h4 {[%clk 0:01:36.8]} 24... Kh7 {[%clk 0:02:17.7]} 25. Nf1
{[%clk 0:01:36.1]} 25... f5 {[%clk 0:02:12]} 26. exf5 {[%clk 0:01:33]} 26...
Rxe1 {[%clk 0:02:12.9]} 27. Qxe1 {[%clk 0:01:32.6]} 27... Bxf5 {[%clk
0:02:13.6]} 28. Nde3 {[%clk 0:01:26.9]} 28... Bc8 {[%clk 0:02:06.2]} 29. Nd2
{[%clk 0:01:22.5]} 29... Ba6 {[%clk 0:02:02.8]} 30. Qd1 {[%clk 0:01:11.7]} 30...
Qxh4 {[%clk 0:02:02.3]} 31. Nxb3 {[%clk 0:01:07.2]} 31... Be5 {[%clk 0:01:58]}
32. Nf1 {[%clk 0:01:02]} 32... Bxf1 {[%clk 0:01:58.6]} 33. Kxf1 {[%clk
0:00:48.7]} 33... Qh1+ {[%clk 0:01:58.9]} 34. Ke2 {[%clk 0:00:49.1]} 34... Qxg2+
{[%clk 0:01:59.1]} 35. Kd3 {[%clk 0:00:48.8]} 35... h4 {[%clk 0:01:57.2]} 36.
Qe2 {[%clk 0:00:26.2]} 36... h3 {[%clk 0:01:53.8]} 0-1

[Event "Early-Titled-Tuesday-Blitz-May-28-2024"]
[Site "Chess.com"]
[Date "2024.05.28"]
[Round "4"]
[White "lamomiajunior"]
[Black "Attacker_2006"]
[Result "0-1"]
[WhiteElo "2728"]
[BlackElo "2549"]
[TimeControl "180+1"]
[EndTime "8:37:52 PDT"]
[Termination "Attacker_2006 won by resignation"]

1. d4 {[%clk 0:03:00.9]} 1... Nf6 {[%clk 0:02:59.4]} 2. Nc3 {[%clk 0:03:01.2]}
2... g6 {[%clk 0:02:56.3]} 3. e4 {[%clk 0:03:01]} 3... Bg7 {[%clk 0:02:57]} 4.
e5 {[%clk 0:03:01.1]} 4... Ng8 {[%clk 0:02:57.5]} 5. Nf3 {[%clk 0:03:01.6]} 5...
d6 {[%clk 0:02:58.2]} 6. Qe2 {[%clk 0:03:01.3]} 6... Nc6 {[%clk 0:02:54.5]} 7.
Bf4 {[%clk 0:02:58.7]} 7... dxe5 {[%clk 0:02:53.7]} 8. dxe5 {[%clk 0:02:59.6]}
8... Bg4 {[%clk 0:02:54]} 9. Rd1 {[%clk 0:02:59.2]} 9... Qc8 {[%clk 0:02:54.5]}
10. Nd5 {[%clk 0:02:44.5]} 10... e6 {[%clk 0:02:46.3]} 11. Nc3 {[%clk
0:02:44.5]} 11... Nge7 {[%clk 0:02:38.8]} 12. h3 {[%clk 0:02:23.1]} 12... Bxf3
{[%clk 0:02:38.4]} 13. gxf3 {[%clk 0:02:24]} 13... g5 {[%clk 0:02:36.6]} 14.
Bxg5 {[%clk 0:02:21.7]} 14... Nxe5 {[%clk 0:02:37.2]} 15. h4 {[%clk 0:02:17.5]}
15... h6 {[%clk 0:02:31.7]} 16. Be3 {[%clk 0:02:15.4]} 16... Nf5 {[%clk
0:02:27.7]} 17. Bf4 {[%clk 0:02:09.3]} 17... Nc6 {[%clk 0:02:18.9]} 18. Rg1
{[%clk 0:02:07.7]} 18... Bf6 {[%clk 0:02:18.3]} 19. Nd5 {[%clk 0:02:04.8]} 19...
Bd8 {[%clk 0:02:13.8]} 20. Bh3 {[%clk 0:02:01]} 20... Nfd4 {[%clk 0:02:06]} 21.
Qe4 {[%clk 0:01:55.7]} 21... f5 {[%clk 0:02:05.2]} 22. Bxf5 {[%clk 0:01:02.3]}
22... Nxf5 {[%clk 0:02:03.2]} 23. Ne3 {[%clk 0:00:28.6]} 23... Nce7 {[%clk
0:01:56.5]} 24. Be5 {[%clk 0:00:24.5]} 24... Rf8 {[%clk 0:01:51.2]} 25. Ng4
{[%clk 0:00:24]} 25... Nd5 {[%clk 0:01:41.3]} 26. c4 {[%clk 0:00:23.3]} 26...
Nf6 {[%clk 0:01:33.3]} 27. c5 {[%clk 0:00:12.3]} 27... Nxe4 {[%clk 0:01:32.7]}
0-1

[Event "Early-Titled-Tuesday-Blitz-May-28-2024"]
[Site "Chess.com"]
[Date "2024.05.28"]
[Round "4"]
[White "InitiatingASC"]
[Black "Sofia_Blokhin"]
[Result "0-1"]
[WhiteElo "2423"]
[BlackElo "2274"]
[TimeControl "180+1"]
[EndTime "8:37:55 PDT"]
[Termination "Sofia_Blokhin won by resignation"]

1. d4 {[%clk 0:03:00.9]} 1... f5 {[%clk 0:02:59.1]} 2. g3 {[%clk 0:03:00.2]}
2... Nf6 {[%clk 0:02:58.5]} 3. Bg2 {[%clk 0:03:00.3]} 3... g6 {[%clk 0:02:58.9]}
4. Nh3 {[%clk 0:03:00.7]} 4... Bg7 {[%clk 0:02:58.9]} 5. Nf4 {[%clk 0:03:00.5]}
5... O-O {[%clk 0:02:58.8]} 6. Nd2 {[%clk 0:03:00.8]} 6... d6 {[%clk 0:02:59]}
7. Nf3 {[%clk 0:03:01.1]} 7... Nc6 {[%clk 0:02:54.8]} 8. h4 {[%clk 0:02:59.8]}
8... e5 {[%clk 0:02:51.9]} 9. d5 {[%clk 0:02:45.2]} 9... Ne7 {[%clk 0:02:30.8]}
10. Ne6 {[%clk 0:02:41.5]} 10... Bxe6 {[%clk 0:02:29.8]} 11. dxe6 {[%clk
0:02:41.9]} 11... h6 {[%clk 0:02:27.6]} 12. h5 {[%clk 0:02:34.9]} 12... g5
{[%clk 0:02:25.3]} 13. Nxg5 {[%clk 0:02:34.6]} 13... hxg5 {[%clk 0:02:22.4]} 14.
Bxg5 {[%clk 0:02:35.4]} 14... Nh7 {[%clk 0:02:11.6]} 15. Bh4 {[%clk 0:02:18.9]}
15... Bf6 {[%clk 0:02:05.2]} 16. Qd2 {[%clk 0:02:13.6]} 16... Qc8 {[%clk
0:01:57.9]} 17. c3 {[%clk 0:01:07]} 17... Rb8 {[%clk 0:01:53.8]} 18. Qe3 {[%clk
0:00:34.4]} 18... a6 {[%clk 0:01:40.5]} 19. Qa7 {[%clk 0:00:31.7]} 19... b6
{[%clk 0:01:26.7]} 20. O-O-O {[%clk 0:00:26]} 20... e4 {[%clk 0:01:21.6]} 21.
Bxf6 {[%clk 0:00:18.4]} 21... Nxf6 {[%clk 0:01:11.4]} 22. Rxd6 {[%clk
0:00:18.3]} 22... Ra8 {[%clk 0:01:06.4]} 0-1

[Event "Early-Titled-Tuesday-Blitz-May-28-2024"]
[Site "Chess.com"]
[Date "2024.05.28"]
[Round "4"]
[White "Zq1"]
[Black "Massakru"]
[Result "1-0"]
[WhiteElo "2548"]
[BlackElo "2372"]
[TimeControl "180+1"]
[EndTime "8:37:56 PDT"]
[Termination "Zq1 won by resignation"]

1. d4 {[%clk 0:03:00.9]} 1... Nf6 {[%clk 0:02:59.7]} 2. c4 {[%clk 0:03:00.9]}
2... e6 {[%clk 0:03:00.2]} 3. Nc3 {[%clk 0:02:59.7]} 3... d5 {[%clk 0:03:00.5]}
4. cxd5 {[%clk 0:02:58.8]} 4... Nxd5 {[%clk 0:03:00.6]} 5. Nf3 {[%clk
0:02:52.5]} 5... c5 {[%clk 0:02:57.8]} 6. g3 {[%clk 0:02:48.1]} 6... Nc6 {[%clk
0:02:53.9]} 7. Bg2 {[%clk 0:02:46]} 7... Nxc3 {[%clk 0:02:50.9]} 8. bxc3 {[%clk
0:02:45.3]} 8... cxd4 {[%clk 0:02:51.3]} 9. cxd4 {[%clk 0:02:45.4]} 9... Bb4+
{[%clk 0:02:51]} 10. Bd2 {[%clk 0:02:45.5]} 10... Bxd2+ {[%clk 0:02:49.3]} 11.
Qxd2 {[%clk 0:02:45.7]} 11... O-O {[%clk 0:02:47.4]} 12. O-O {[%clk 0:02:44.4]}
12... Bd7 {[%clk 0:02:42.5]} 13. Rfd1 {[%clk 0:02:40.8]} 13... Rc8 {[%clk
0:02:35.4]} 14. e4 {[%clk 0:02:38.2]} 14... Qa5 {[%clk 0:02:32.9]} 15. Qb2
{[%clk 0:02:31.4]} 15... b6 {[%clk 0:02:25]} 16. h4 {[%clk 0:02:24.6]} 16... Qb4
{[%clk 0:02:16.2]} 17. Qe2 {[%clk 0:02:19.7]} 17... Na5 {[%clk 0:02:14.3]} 18.
Ne5 {[%clk 0:02:11.4]} 18... Bb5 {[%clk 0:02:11.9]} 19. Qg4 {[%clk 0:02:08.6]}
19... Nc4 {[%clk 0:02:04.8]} 20. Nf3 {[%clk 0:01:58.2]} 20... f5 {[%clk
0:01:39.7]} 21. exf5 {[%clk 0:01:51.2]} 21... exf5 {[%clk 0:01:38.3]} 22. Qf4
{[%clk 0:01:49]} 22... Qd6 {[%clk 0:01:35.4]} 23. Ne5 {[%clk 0:01:45.4]} 23...
Nb2 {[%clk 0:01:09.1]} 24. Rdb1 {[%clk 0:01:34.8]} 24... Rc2 {[%clk 0:01:07]}
25. Rc1 {[%clk 0:01:16.9]} 25... Rxc1+ {[%clk 0:00:58.5]} 26. Rxc1 {[%clk
0:01:15.6]} 26... Rd8 {[%clk 0:00:44.8]} 27. Qxf5 {[%clk 0:01:13.3]} 27... Qxd4
{[%clk 0:00:35.4]} 28. Qe6+ {[%clk 0:01:12]} 28... Kh8 {[%clk 0:00:31.5]} 29.
Nf7+ {[%clk 0:01:11.9]} 29... Kg8 {[%clk 0:00:31.7]} 30. Nh6+ {[%clk 0:01:11.6]}
30... Kh8 {[%clk 0:00:29.9]} 31. Qg8+ {[%clk 0:01:11.5]} 1-0

[Event "Early-Titled-Tuesday-Blitz-May-28-2024"]
[Site "Chess.com"]
[Date "2024.05.28"]
[Round "4"]
[White "SharapovEvgeny"]
[Black "OparinGrigoriy"]
[Result "0-1"]
[WhiteElo "2613"]
[BlackElo "3049"]
[TimeControl "180+1"]
[EndTime "8:37:59 PDT"]
[Termination "OparinGrigoriy won by resignation"]

1. e4 {[%clk 0:02:59.8]} 1... c6 {[%clk 0:02:29.7]} 2. d4 {[%clk 0:02:58.5]}
2... d5 {[%clk 0:02:30.6]} 3. Nc3 {[%clk 0:02:56.9]} 3... dxe4 {[%clk
0:02:30.7]} 4. Nxe4 {[%clk 0:02:57.2]} 4... Nf6 {[%clk 0:02:31.3]} 5. Nxf6+
{[%clk 0:02:57]} 5... exf6 {[%clk 0:02:32.2]} 6. Bc4 {[%clk 0:02:57]} 6... Bd6
{[%clk 0:02:32.5]} 7. Qe2+ {[%clk 0:02:56.8]} 7... Kf8 {[%clk 0:02:31.4]} 8. Nf3
{[%clk 0:02:56.3]} 8... Na6 {[%clk 0:02:31.3]} 9. O-O {[%clk 0:02:55.6]} 9...
Nc7 {[%clk 0:02:31.6]} 10. Bd2 {[%clk 0:02:52.5]} 10... h5 {[%clk 0:02:31.6]}
11. Rfe1 {[%clk 0:02:51.4]} 11... h4 {[%clk 0:02:30.1]} 12. h3 {[%clk
0:02:50.9]} 12... g6 {[%clk 0:02:30.6]} 13. Rad1 {[%clk 0:02:43.7]} 13... Kg7
{[%clk 0:02:30.7]} 14. Bb3 {[%clk 0:02:43.3]} 14... b5 {[%clk 0:02:28.1]} 15. c4
{[%clk 0:02:41.9]} 15... bxc4 {[%clk 0:02:16.6]} 16. Qxc4 {[%clk 0:02:41.5]}
16... Be6 {[%clk 0:02:17.1]} 17. Qxc6 {[%clk 0:02:40.5]} 17... Bxb3 {[%clk
0:02:16.7]} 18. axb3 {[%clk 0:02:40]} 18... Rb8 {[%clk 0:02:16.1]} 19. d5 {[%clk
0:02:32]} 19... Rxb3 {[%clk 0:02:06.9]} 20. Bc3 {[%clk 0:02:31.8]} 20... Rb6
{[%clk 0:02:06.3]} 21. Qc4 {[%clk 0:02:30.9]} 21... Rh5 {[%clk 0:01:56.1]} 22.
Nd4 {[%clk 0:02:12.2]} 22... Nxd5 {[%clk 0:01:49.3]} 23. Nc6 {[%clk 0:02:08.4]}
23... Qd7 {[%clk 0:01:45.9]} 24. Nd4 {[%clk 0:01:49.1]} 24... Nxc3 {[%clk
0:01:44.7]} 25. bxc3 {[%clk 0:01:47.9]} 25... Qc7 {[%clk 0:01:39.9]} 26. Qd3
{[%clk 0:01:45.4]} 26... a5 {[%clk 0:01:38.3]} 27. c4 {[%clk 0:01:33.8]} 27...
Be5 {[%clk 0:01:37.8]} 28. Nf3 {[%clk 0:01:24.1]} 28... Bf4 {[%clk 0:01:28.1]}
29. Qd4 {[%clk 0:01:18.9]} 29... Rb4 {[%clk 0:01:24]} 30. Re4 {[%clk 0:01:15.5]}
30... Be5 {[%clk 0:01:19.5]} 31. Nxe5 {[%clk 0:01:15.1]} 31... Rxe5 {[%clk
0:01:20.4]} 32. Rxe5 {[%clk 0:01:14.2]} 32... fxe5 {[%clk 0:01:18.9]} 33. Qxh4
{[%clk 0:01:08.9]} 33... Rxc4 {[%clk 0:01:19.2]} 34. Qd8 {[%clk 0:01:05.4]}
34... a4 {[%clk 0:01:16.3]} 35. Qa8 {[%clk 0:00:57.3]} 35... Qc6 {[%clk
0:01:13.4]} 36. Qa5 {[%clk 0:00:54.8]} 36... Rc5 {[%clk 0:01:12.1]} 37. Qb4
{[%clk 0:00:50.2]} 37... Rc1 {[%clk 0:01:12.6]} 38. Rxc1 {[%clk 0:00:47.1]}
38... Qxc1+ {[%clk 0:01:13.5]} 39. Kh2 {[%clk 0:00:47.2]} 39... Qf4+ {[%clk
0:01:14.2]} 0-1